fUSD/lending_fUSD_20260308
["ID","MTS","AMOUNT","RATE_DAILY","PERIOD"]
[407999497,1773000644939,-500.0,0.00019999,2]
[407999498,1773000644957,-445.7360514,0.00019999,2]
[407999499,1773000644967,-500.0,0.00019999,2]
[407999500,1773000644977,-500.0,0.00019999,2]
[407999501,1773000644988,-1900.0,0.0002,2]
[407999502,1773000644998,-3179.0,0.0002,2]
[407999503,1773000645007,-680308.18826969,0.0002,2]
[407999504,1773000645063,-498.99652095,0.0002,2]
[407999505,1773000645081,-3153.20894288,0.0002,2]
[407999506,1773000645094,-67104.04992033,0.0002,2]
[407999507,1773000645397,-237.923896,0.00019199,2]
[407999508,1773000645407,-237.923896,0.00019199,2]
[407999509,1773000645416,-237.923896,0.000195,2]
[407999510,1773000645426,-237.923896,0.0001983,2]
[407999511,1773000645436,-237.923896,0.0001983,2]
[407999512,1773000645445,-237.923896,0.000199,2]
[407999513,1773000645455,-254.231624,0.0002,2]
[407999514,1773000645466,-306576.97805246,0.0002,2]
[407999515,1773000645488,-237.923896,0.000195,2]
[407999516,1773000645497,-110.58801093,0.0002,2]
[407999517,1773000645508,-24759.61174927,0.0002,2]
[407999518,1773000645623,-431.35415763,0.0002,2]
[407999519,1773000645637,-969.64490421,0.0002,2]
[407999522,1773000647040,-237.923896,0.00019199,2]
[407999523,1773000647051,-237.923896,0.00019199,2]
[407999524,1773000647061,-237.923896,0.000195,2]
[407999525,1773000647071,-500.0,0.00019798,2]
[407999526,1773000647080,-500.0,0.00019829,2]
[407999527,1773000647092,-237.923896,0.0001983,2]
[407999528,1773000647102,-237.923896,0.0001983,2]
[407999529,1773000647112,-237.923896,0.0001983,2]
[407999530,1773000647121,-237.923896,0.0001983,2]
[407999531,1773000647130,-237.923896,0.000199,2]
[407999532,1773000647140,-237.923896,0.000199,2]
[407999533,1773000647149,-500.0,0.00019979,2]
[407999534,1773000647158,-34783.9103484,0.0002,2]
[407999535,1773000647295,-7408.91241934,0.0002,2]
[407999536,1773000773849,6852.45,0.0001,2]
[407999537,1773000797533,222.69787162,0.0001,2]
[407999538,1773000907859,161.0,0.00011503,2]
[407999539,1773001036940,557.04339442,8e-05,2]
[407999540,1773001036967,500.0,8e-05,2]
[407999541,1773001042413,620.33713069,8e-05,2]
[407999542,1773001049054,543.25685673,8e-05,2]
[407999545,1773001210333,161.0,0.00011503,2]
[407999549,1773001506036,161.0,0.00011503,2]
[407999556,1773001832107,-303.8818997,0.00014999,2]
[407999557,1773001832120,-385.00293256,0.00014999,2]
[407999558,1773001832132,-302.18492085,0.00014999,2]
[407999559,1773001832145,-208.93024689,0.00014999,2]
[407999560,1773001832154,-204.5,0.00015,2]
[407999561,1773001832163,-9.38492085,0.00015,30]
[407999562,1773001832175,-490.61507915,0.00015,30]
[407999563,1773001832186,-423.63080618,0.00015,30]
[407999564,1773001832196,-580.46736942,0.00015,30]
[407999565,1773001832206,-562.58734767,0.00015,30]
[407999566,1773001832215,-500.0,0.00015,30]
[407999567,1773001832225,-212.36089022,0.00015,30]
[407999568,1773001832236,-287.63910978,0.00015,30]
[407999569,1773001832246,-500.0,0.00015,30]
[407999570,1773001832255,-500.0,0.00015,30]
[407999571,1773001832264,-500.0,0.00015,30]
[407999573,1773001832274,-500.0,0.00015,30]
[407999575,1773001832283,-500.0,0.00015,30]
[407999577,1773001832292,-500.0,0.00015,30]
[407999578,1773001832302,-399.65283419,0.00015,30]
[407999579,1773001832312,-500.0,0.00015,30]
[407999580,1773001832321,-556.72994091,0.00015,30]
[407999582,1773001832331,-600.0,0.00015,30]
[407999584,1773001832340,-200.0,0.000153,2]
[407999586,1773001832350,-2951.45,0.00015925,2]
[407999588,1773001832358,-48.96564869,0.00016499,2]
[407999590,1773001832373,-551.03435131,0.00016499,2]
[407999592,1773001832383,-2500.0,0.00016499,2]
[407999594,1773001832392,-1227.00215329,0.00016499,2]
[407999596,1773001832401,-195.0,0.00016499,2]
[407999597,1773001832411,-195.0,0.00016499,2]
[407999598,1773001832420,-195.0,0.00016499,2]
[407999599,1773001832429,-195.0,0.00016499,2]
[407999600,1773001832440,-195.0,0.00016499,2]
[407999601,1773001832450,-178.93204733,0.00016499,2]
[407999602,1773001832461,-2500.0,0.00016499,2]
[407999603,1773001832472,-2500.0,0.00016499,2]
[407999604,1773001832481,-2500.0,0.00016499,2]
[407999605,1773001832491,-250.0,0.00016499,2]
[407999606,1773001832502,-1312.0,0.00016499,2]
[407999607,1773001832511,-503.0,0.00017,2]
[407999608,1773001832520,-240.83,0.0001751,2]
[407999609,1773001832530,-408.71998228,0.00017973,2]
[407999610,1773001832539,-329.60930897,0.00018,7]
[407999611,1773001832549,-589.0,0.00018197,2]
[407999612,1773001832558,-1200.0,0.00018356,7]
[407999613,1773001832568,-1200.0,0.00018356,7]
[407999614,1773001832577,-600.0,0.00018356,7]
[407999615,1773001832590,-503.0,0.0001837,3]
[407999616,1773001832599,-847.0,0.000184,2]
[407999617,1773001832609,-200.0,0.0001848,2]
[407999618,1773001832618,-153.28214642,0.00018523,2]
[407999619,1773001832628,-1991.43,0.00018537,2]
[407999620,1773001832637,-627.99,0.00018546,2]
[407999621,1773001832646,-1500.0,0.00018573,2]
[407999622,1773001832656,-1779.24,0.00018598,2]
[407999623,1773001832665,-2925.24962293,0.000189,2]
[407999624,1773001832674,-892.86053309,0.00018911,2]
[407999625,1773001832684,-2069.1,0.00018912,2]
[407999626,1773001832693,-298.76557689,0.00018926,2]
[407999627,1773001832702,-219.45569827,0.00018926,2]
[407999628,1773001832712,-847.0,0.0001904,2]
[407999629,1773001832721,-29656.0,0.00019061,2]
[407999630,1773001832730,-1000.0,0.00019178,2]
[407999631,1773001832740,-1200.0,0.00019452,7]
[407999632,1773001832749,-1200.0,0.00019452,7]
[407999633,1773001832758,-600.0,0.00019452,7]
[407999634,1773001832768,-1000.0,0.00019452,2]
[407999635,1773001832778,-500.0,0.00019601,2]
[407999636,1773001832788,-150.0,0.00019601,2]
[407999637,1773001832802,-150.0,0.00019601,2]
[407999638,1773001832813,-150.0,0.00019601,2]
[407999639,1773001832822,-150.0,0.00019601,2]
[407999640,1773001832832,-150.0,0.00019601,2]
[407999641,1773001832841,-150.0,0.00019601,2]
[407999642,1773001832851,-168.0,0.00019641,2]
[407999643,1773001832860,-500.0,0.00019656,2]
[407999644,1773001832869,-150.0,0.00019656,2]
[407999645,1773001832879,-150.0,0.00019656,2]
[407999646,1773001832890,-150.0,0.00019656,2]
[407999647,1773001832899,-150.0,0.00019656,2]
[407999648,1773001832909,-2805.0,0.0001968,2]
[407999649,1773001832919,-847.0,0.0001968,2]
[407999650,1773001832928,-790.24070377,0.00019698,2]
[407999651,1773001832938,-480.0,0.00019711,2]
[407999652,1773001832947,-200.0,0.00019711,2]
[407999653,1773001832960,-150.0,0.00019711,2]
[407999654,1773001832969,-200.0,0.00019711,2]
[407999655,1773001832978,-200.0,0.00019711,2]
[407999656,1773001832988,-200.0,0.00019726,2]
[407999657,1773001832999,-1000.0,0.00019726,2]
[407999658,1773001833008,-503.0,0.00019739,4]
[407999659,1773001833018,-200.0,0.00019765,2]
[407999660,1773001833027,-6751.2313,0.00019782,2]
[407999661,1773001833037,-177.37792569,0.00019786,2]
[407999662,1773001833046,-151.0,0.00019788,2]
[407999663,1773001833055,-2828.6681,0.00019791,2]
[407999664,1773001833063,-1517.40331656,0.00019791,2]
[407999665,1773001833075,-787.13415081,0.00019791,2]
[407999670,1773001838179,-31010.12557185,0.00019791,2]
[407999671,1773001838190,-307.92957538,0.00019791,2]
[407999672,1773001838288,-1997.5535982,0.00019791,2]
[407999673,1773001838300,-599.21464163,0.00019791,2]
[407999674,1773001838312,-1568.14432506,0.00019791,2]
[407999675,1773001838343,-15837.27592586,0.00019791,2]
[407999676,1773001838400,-754.07848955,0.00019791,2]
[407999687,1773001840326,-4389.6735051,0.00019791,2]
[407999688,1773001840337,-500.0,0.00019798,2]
[407999689,1773001840348,-177.37792566,0.00019799,2]
[407999690,1773001840359,-2500.0,0.00019799,2]
[407999691,1773001840370,-427.69754241,0.000198,2]
[407999692,1773001840381,-273.74626553,0.000198,2]
[407999693,1773001840391,-427.69754232,0.00019811,2]
[407999694,1773001840402,-177.37792566,0.00019811,2]
[407999695,1773001840413,-273.74626553,0.00019814,2]
[407999696,1773001840423,-1247.063,0.00019821,2]
[407999697,1773001840434,-427.69754232,0.00019822,2]
[407999698,1773001840445,-177.37792566,0.00019824,2]
[407999699,1773001840454,-273.74626553,0.00019829,2]
[407999700,1773001840463,-427.69754232,0.00019833,2]
[407999701,1773001840473,-177.37792566,0.00019837,2]
[407999702,1773001840483,-200.0,0.0001984,2]
[407999703,1773001840493,-273.74626553,0.00019843,2]
[407999704,1773001840503,-427.69754232,0.00019844,2]
[407999705,1773001840512,-177.37792566,0.00019849,2]
[407999706,1773001840522,-427.69754232,0.00019856,2]
[407999707,1773001840531,-273.74626553,0.00019857,2]
[407999708,1773001840541,-177.37792566,0.00019862,2]
[407999709,1773001840550,-150.0,0.00019864,2]
[407999710,1773001840560,-427.69754232,0.00019867,2]
[407999711,1773001840571,-273.74626553,0.00019871,2]
[407999712,1773001840580,-177.37792566,0.00019875,2]
[407999713,1773001840593,-427.69754232,0.00019878,2]
[407999714,1773001840603,-25000.0,0.00019882,3]
[407999715,1773001840614,-273.74626553,0.00019886,2]
[407999716,1773001840623,-177.37792566,0.00019887,2]
[407999717,1773001840634,-427.69754232,0.00019889,2]
[407999718,1773001840644,-25000.0,0.00019891,3]
[407999719,1773001840653,-151.0,0.00019896,2]
[407999720,1773001840663,-151.0,0.00019896,2]
[407999721,1773001840672,-151.0,0.00019896,2]
[407999722,1773001840683,-151.0,0.00019897,2]
[407999723,1773001840694,-634.35,0.00019899,2]
[407999724,1773001840703,-500.0,0.00019899,2]
[407999725,1773001840713,-500.0,0.00019899,2]
[407999726,1773001840722,-500.0,0.00019899,2]
[407999727,1773001840732,-500.0,0.00019899,2]
[407999728,1773001840741,-500.0,0.00019899,2]
[407999729,1773001840751,-500.0,0.00019899,2]
[407999730,1773001840761,-500.0,0.00019899,2]
[407999731,1773001840770,-500.0,0.00019899,2]
[407999732,1773001840779,-270.7026983,0.00019899,2]
[407999733,1773001840789,-500.0,0.00019899,2]
[407999734,1773001840799,-500.0,0.00019899,2]
[407999735,1773001840809,-500.0,0.00019899,2]
[407999736,1773001840818,-500.0,0.00019899,2]
[407999737,1773001840828,-500.0,0.00019899,2]
[407999738,1773001840837,-500.0,0.00019899,2]
[407999739,1773001840847,-500.0,0.00019899,2]
[407999740,1773001840856,-500.0,0.00019899,2]
[407999741,1773001840866,-500.0,0.00019899,2]
[407999742,1773001840875,-500.0,0.00019899,2]
[407999743,1773001840885,-500.0,0.00019899,2]
[407999744,1773001840895,-500.0,0.00019899,2]
[407999745,1773001840905,-500.0,0.00019899,2]
[407999746,1773001840914,-500.0,0.00019899,2]
[407999747,1773001840924,-500.0,0.00019899,2]
[407999748,1773001840935,-500.0,0.00019899,2]
[407999749,1773001840945,-500.0,0.00019899,2]
[407999750,1773001840959,-500.0,0.00019899,2]
[407999751,1773001840968,-500.0,0.00019899,2]
[407999752,1773001840977,-500.0,0.00019899,2]
[407999753,1773001840987,-500.0,0.00019899,2]
[407999754,1773001840998,-500.0,0.00019899,2]
[407999755,1773001841007,-500.0,0.00019899,2]
[407999756,1773001841017,-500.0,0.00019899,2]
[407999757,1773001841026,-500.0,0.00019899,2]
[407999758,1773001841038,-500.0,0.00019899,2]
[407999759,1773001841048,-500.0,0.00019899,2]
[407999760,1773001841059,-500.0,0.00019899,2]
[407999761,1773001841069,-500.0,0.00019899,2]
[407999762,1773001841081,-500.0,0.00019899,2]
[407999763,1773001841091,-500.0,0.00019899,2]
[407999764,1773001841102,-500.0,0.00019899,2]
[407999765,1773001841112,-151.16244626,0.00019899,2]
[407999766,1773001841121,-500.0,0.00019899,2]
[407999767,1773001841131,-500.0,0.00019899,2]
[407999768,1773001841140,-500.0,0.00019899,2]
[407999769,1773001841149,-500.0,0.00019899,2]
[407999770,1773001841158,-500.0,0.00019899,2]
[407999771,1773001841167,-500.0,0.00019899,2]
[407999772,1773001841176,-500.0,0.00019899,2]
[407999773,1773001841186,-500.0,0.00019899,2]
[407999774,1773001841195,-500.0,0.00019899,2]
[407999775,1773001841205,-500.0,0.00019899,2]
[407999776,1773001841216,-500.0,0.00019899,2]
[407999777,1773001841227,-500.0,0.00019899,2]
[407999778,1773001841238,-226.33110666,0.00019899,2]
[407999779,1773001841248,-296.82411186,0.00019899,2]
[407999780,1773001841258,-159.57758561,0.00019899,2]
[407999781,1773001841268,-234768.26265585,0.000199,2]
[407999782,1773001841289,-53969.44399,0.000199,2]
[407999783,1773001841319,-6357.32115415,0.000199,2]
[407999784,1773001841329,-1000.0,0.000199,2]
[407999785,1773001841340,-25000.0,0.000199,3]
[407999786,1773001841350,-4467.46003588,0.000199,3]
[407999787,1773001841361,-177.37792566,0.000199,2]
[407999788,1773001841372,-427.69754232,0.000199,2]
[407999789,1773001841382,-10734.12948381,0.000199,3]
[407999790,1773001841392,-883.47157582,0.000199,2]
[407999791,1773001841403,-5800.0,0.000199,2]
[407999792,1773001841412,-273.74626553,0.000199,2]
[407999793,1773001841421,-306.17483749,0.00019967,2]
[407999794,1773001841432,-1515.0,0.00019967,2]
[407999795,1773001841441,-1515.0,0.00019967,2]
[407999796,1773001841450,-1515.0,0.00019967,2]
[407999797,1773001841460,-1515.0,0.00019967,2]
[407999798,1773001841470,-151.0,0.00019967,2]
[407999799,1773001841480,-1515.0,0.00019967,2]
[407999800,1773001841490,-160.44308583,0.00019967,2]
[407999801,1773001841499,-1515.0,0.00019967,2]
[407999802,1773001841509,-151.0,0.00019967,2]
[407999803,1773001841519,-1515.0,0.00019967,2]
[407999804,1773001841528,-151.0,0.00019967,2]
[407999805,1773001841538,-1515.0,0.00019967,2]
[407999806,1773001841548,-151.0,0.00019967,2]
[407999807,1773001841558,-1515.0,0.00019967,2]
[407999808,1773001841567,-151.0,0.00019967,2]
[407999809,1773001841577,-1515.0,0.00019967,2]
[407999810,1773001841587,-151.0,0.00019967,2]
[407999811,1773001841597,-1515.0,0.00019967,2]
[407999812,1773001841606,-1515.0,0.00019967,2]
[407999813,1773001841615,-151.0,0.00019967,2]
[407999814,1773001841625,-1515.0,0.00019967,2]
[407999815,1773001841634,-151.0,0.00019967,2]
[407999816,1773001841644,-1515.0,0.00019967,2]
[407999817,1773001841654,-151.0,0.00019967,2]
[407999818,1773001841663,-1515.0,0.00019967,2]
[407999819,1773001841672,-151.0,0.00019967,2]
[407999820,1773001841682,-151.0,0.00019967,2]
[407999821,1773001841691,-1515.0,0.00019967,2]
[407999822,1773001841701,-400.0,0.0001997,2]
[407999823,1773001841710,-400.0,0.0001997,2]
[407999824,1773001841720,-500.0,0.0001997,2]
[407999825,1773001841729,-168.0,0.00019972,2]
[407999826,1773001841739,-570.0,0.00019973,2]
[407999827,1773001841749,-6110.0,0.00019973,2]
[407999828,1773001841758,-297.0,0.00019973,2]
[407999829,1773001841768,-150.0,0.0001998,2]
[407999830,1773001841777,-1279.0,0.0001998,2]
[407999831,1773001841787,-203.715156,0.0001998,2]
[407999832,1773001841796,-1042.0,0.0001998,2]
[407999833,1773001841805,-3504.0,0.0001998,2]
[407999834,1773001841814,-619.0,0.0001998,2]
[407999835,1773001841824,-443.42464115,0.0001999,2]
[407999836,1773001841834,-581.08524058,0.0001999,2]
[407999837,1773001841843,-154.6401334,0.00019997,2]
[407999838,1773001841853,-500.0,0.00019998,2]
[407999839,1773001841862,-500.0,0.00019998,2]
[407999840,1773001841871,-549.68387848,0.00019998,2]
[407999841,1773001841881,-500.0,0.00019998,2]
[407999842,1773001841891,-500.0,0.00019998,2]
[407999843,1773001841900,-500.0,0.00019998,2]
[407999844,1773001841909,-386.52843539,0.00019998,2]
[407999845,1773001841918,-500.0,0.00019998,2]
[407999846,1773001841928,-500.0,0.00019998,2]
[407999847,1773001841937,-500.0,0.00019998,2]
[407999848,1773001841947,-324.75878306,0.00019998,2]
[407999849,1773001841956,-4491.0,0.00019999,2]
[407999850,1773001841967,-3594.0,0.00019999,2]
[407999851,1773001841977,-469.3746758,0.00019999,2]
[407999852,1773001841986,-300.0,0.00019999,2]
[407999853,1773001841995,-300.0,0.00019999,2]
[407999854,1773001842004,-612852.6857716,0.00019999,2]
[407999855,1773001842014,-151.0,0.00019999,2]
[407999856,1773001842024,-521.506932,0.00019999,2]
[407999857,1773001842034,-521.506932,0.00019999,2]
[407999858,1773001842043,-521.506932,0.00019999,2]
[407999859,1773001842053,-521.506932,0.00019999,2]
[407999860,1773001842062,-348.403263,0.00019999,2]
[407999861,1773001842072,-348.403263,0.00019999,2]
[407999862,1773001842081,-348.403263,0.00019999,2]
[407999863,1773001842092,-348.403263,0.00019999,2]
[407999864,1773001842101,-151.0,0.00019999,2]
[407999865,1773001842111,-151.0,0.00019999,2]
[407999866,1773001842120,-151.0,0.00019999,2]
[407999867,1773001842129,-151.0,0.00019999,2]
[407999868,1773001842138,-151.0,0.00019999,2]
[407999869,1773001842147,-151.0,0.00019999,2]
[407999870,1773001842157,-151.0,0.00019999,2]
[407999871,1773001842166,-421.135973,0.00019999,2]
[407999872,1773001842175,-421.135973,0.00019999,2]
[407999873,1773001842185,-421.135973,0.00019999,2]
[407999874,1773001842194,-421.135973,0.00019999,2]
[407999875,1773001842204,-151.0,0.00019999,2]
[407999876,1773001842213,-151.0,0.00019999,2]
[407999877,1773001842223,-151.0,0.00019999,2]
[407999878,1773001842232,-151.0,0.00019999,2]
[407999879,1773001842241,-343.20274,0.00019999,2]
[407999880,1773001842250,-343.20274,0.00019999,2]
[407999881,1773001842259,-151.0,0.00019999,2]
[407999882,1773001842269,-343.20274,0.00019999,2]
[407999883,1773001842279,-343.20274,0.00019999,2]
[407999884,1773001842289,-151.0,0.00019999,2]
[407999885,1773001842298,-151.0,0.00019999,2]
[407999886,1773001842308,-500.0,0.00019999,2]
[407999887,1773001842317,-500.0,0.00019999,2]
[407999888,1773001842326,-500.0,0.00019999,2]
[407999889,1773001842335,-500.0,0.00019999,2]
[407999890,1773001842345,-500.0,0.00019999,2]
[407999891,1773001842354,-500.0,0.00019999,2]
[407999892,1773001842633,-500.0,0.00019999,2]
[407999893,1773001842657,-500.0,0.00019999,2]
[407999894,1773001842666,-500.0,0.00019999,2]
[407999895,1773001842674,-500.0,0.00019999,2]
[407999896,1773001842683,-500.0,0.00019999,2]
[407999897,1773001842692,-500.0,0.00019999,2]
[407999898,1773001842701,-500.0,0.00019999,2]
[407999899,1773001842709,-500.0,0.00019999,2]
[407999900,1773001842717,-500.0,0.00019999,2]
[407999901,1773001842727,-500.0,0.00019999,2]
[407999902,1773001842736,-500.0,0.00019999,2]
[407999903,1773001842745,-500.0,0.00019999,2]
[407999904,1773001842755,-500.0,0.00019999,2]
[407999905,1773001842770,-500.0,0.00019999,2]
[407999906,1773001842790,-500.0,0.00019999,2]
[407999907,1773001842807,-500.0,0.00019999,2]
[407999908,1773001842817,-500.0,0.00019999,2]
[407999909,1773001842828,-500.0,0.00019999,2]
[407999910,1773001842843,-500.0,0.00019999,2]
[407999911,1773001842864,-206.35597305,0.00019999,2]
[407999912,1773001842885,-500.0,0.00019999,2]
[407999913,1773001842902,-477.69069778,0.00019999,2]
[407999914,1773001842913,-169.06691202,0.00019999,2]
[407999915,1773001842923,-231.89164943,0.00019999,2]
[407999916,1773001842932,-500.0,0.00019999,2]
[407999917,1773001842942,-500.0,0.00019999,2]
[407999918,1773001842956,-500.0,0.00019999,2]
[407999919,1773001842970,-500.0,0.00019999,2]
[407999920,1773001842981,-500.0,0.00019999,2]
[407999921,1773001842992,-430.19644101,0.00019999,2]
[407999922,1773001843003,-500.0,0.00019999,2]
[407999924,1773001843012,-500.0,0.00019999,2]
[407999925,1773001843022,-500.0,0.00019999,2]
[407999926,1773001843034,-500.0,0.00019999,2]
[407999927,1773001843044,-474.102705,0.00019999,2]
[407999928,1773001843053,-5487.79,0.00019999,2]
[407999929,1773001843062,-190363.58066944,0.0002,2]
[407999932,1773001843390,-1699.52693105,0.0002,2]
[407999933,1773001843416,-25717.66652692,0.0002,2]
[407999934,1773001843428,-8696.39043147,0.0002,2]
[407999937,1773001846146,-1927.56441577,0.000199,2]
[407999938,1773001846157,-2101.73558423,0.0002,2]
[407999939,1773001846174,-81401.22732531,0.0002,2]
[407999948,1773001942729,500.0,8e-05,2]
[407999949,1773002697328,156.74,9.248e-05,2]
[407999950,1773002697706,156.74,9.762e-05,2]
[407999951,1773002697915,156.74,0.00010275,2]
[407999952,1773002698156,156.74,0.00010789,2]
[407999953,1773002698342,156.74,0.00011303,2]
[407999965,1773003031266,-156.74,0.00011817,2]
[407999967,1773003031276,-156.74,0.0001233,2]
[407999968,1773003031286,-156.74,0.00012844,2]
[407999969,1773003031295,-193.0,0.00012998,2]
[407999970,1773003031304,-156.74,0.00013358,2]
[407999971,1773003031315,-156.74,0.00013872,2]
[407999972,1773003031324,-156.74,0.00014385,2]
[407999973,1773003031335,-156.74,0.00014899,2]
[407999974,1773003031344,-300.0,0.00014999,2]
[407999975,1773003031354,-1200.0,0.00014999,2]
[407999976,1773003031364,-135.91408268,0.00015,2]
[407999977,1773003031380,-114.08591732,0.00015,2]
[407999978,1773003031392,-500.0,0.00015,30]
[407999979,1773003031403,-500.0,0.00015,30]
[407999980,1773003031414,-500.0,0.00015,30]
[407999981,1773003031424,-948.24735875,0.00015,30]
[407999982,1773003031435,-156.74,0.00015413,2]
[407999983,1773003031445,-206.42,0.00015908,2]
[407999984,1773003031457,-156.74,0.00015927,2]
[407999985,1773003031467,-420.0,0.00016416,2]
[407999986,1773003031476,-156.74,0.0001644,2]
[407999987,1773003031485,-1680.0,0.00016499,2]
[407999989,1773003031495,-156.74,0.00016954,2]
[407999990,1773003031504,-502.0,0.00017,2]
[407999991,1773003031515,-156.74,0.00017468,2]
[407999992,1773003031524,-526.97,0.00017757,2]
[407999993,1773003031533,-344.42,0.00017898,2]
[407999994,1773003031543,-587.0,0.00017966,2]
[407999995,1773003031552,-150.0,0.00017967,2]
[407999996,1773003031561,-166.66,0.00017971,2]
[407999997,1773003031570,-156.74,0.00017982,2]
[407999999,1773003031580,-2351.0,0.00018149,2]
[408000001,1773003031589,-166.66,0.00018349,2]
[408000003,1773003031598,-500.0,0.00018356,7]
[408000005,1773003031608,-1100.0,0.00018356,7]
[408000006,1773003031617,-1100.0,0.00018356,7]
[408000007,1773003031627,-502.0,0.000184,3]
[408000008,1773003031637,-29088.4835,0.00018433,2]
[408000009,1773003031647,-193.15,0.00018459,2]
[408000010,1773003031657,-3240.0,0.00018486,2]
[408000011,1773003031666,-156.74,0.00018495,2]
[408000012,1773003031677,-7994.39,0.00018533,2]
[408000013,1773003031686,-299.99,0.00018533,4]
[408000014,1773003031697,-507.03,0.00018533,2]
[408000015,1773003031707,-4598.62,0.00018533,2]
[408000016,1773003031717,-1476.49,0.00018533,2]
[408000017,1773003031727,-5320.96,0.00018533,2]
[408000018,1773003031736,-9999.99,0.00018533,2]
[408000019,1773003031747,-150.99,0.00018533,2]
[408000020,1773003031758,-999.99,0.00018533,2]
[408000021,1773003031767,-150.99,0.00018533,2]
[408000022,1773003031777,-2930.47523553,0.00018533,2]
[408000023,1773003031789,-4285.29115657,0.00018533,2]
[408000024,1773003031801,-1514.8736079,0.00018533,2]
[408000025,1773003031810,-430.25,0.00018533,2]
[408000026,1773003031819,-312.09,0.00018533,2]
[408000027,1773003031828,-2000.0,0.00018546,2]
[408000028,1773003031838,-1230.42,0.00018591,2]
[408000029,1773003031847,-153.28129939,0.00018618,2]
[408000030,1773003031856,-13072.96,0.00018628,2]
[408000031,1773003031865,-251.4432,0.00018692,2]
[408000032,1773003031875,-166.66,0.00018728,2]
[408000033,1773003031884,-344.42,0.00018792,2]
[408000034,1773003031893,-200.0,0.00019013,2]
[408000035,1773003031903,-982.0,0.0001904,2]
[408000036,1773003031912,-350.0,0.00019084,3]
[408000037,1773003031922,-166.66,0.00019106,2]
[408000038,1773003031931,-401.7426541,0.00019178,30]
[408000039,1773003031943,-21.8273459,0.00019178,30]
[408000040,1773003031952,-1000.0,0.00019178,2]
[408000041,1773003031961,-74.68887186,0.00019363,3]
[408000042,1773003031971,-275.31112814,0.00019363,3]
[408000043,1773003031980,-126.47887186,0.00019413,2]
[408000044,1773003031991,-811.50471421,0.00019413,2]
[408000045,1773003032010,-5016.85001972,0.00019413,2]
[408000050,1773003037569,-331.43,0.00019413,2]
[408000051,1773003037588,-4239.58133123,0.00019413,2]
[408000072,1773003039509,-914.69544861,0.00019413,2]
[408000073,1773003039671,-68003.94961437,0.00019413,2]
[408000074,1773003039681,-500.0,0.00019452,7]
[408000075,1773003039691,-1100.0,0.00019452,7]
[408000076,1773003039700,-1100.0,0.00019452,7]
[408000077,1773003039709,-1000.0,0.00019452,2]
[408000078,1773003039719,-166.66,0.00019484,2]
[408000079,1773003039737,-193.15,0.00019485,2]
[408000080,1773003039753,-350.0,0.00019661,2]
[408000081,1773003039763,-823.0,0.00019663,2]
[408000082,1773003039772,-344.42,0.00019687,2]
[408000083,1773003039781,-2000.0,0.000197,2]
[408000084,1773003039791,-1003.39,0.00019711,2]
[408000085,1773003039800,-1000.0,0.00019726,2]
[408000086,1773003039810,-1000.0,0.00019791,2]
[408000087,1773003039819,-3424.3897,0.000198,2]
[408000088,1773003039828,-502.0,0.000198,4]